[Event "Early-Titled-Tuesday-Blitz-November-28-2023"]
[Site "Chess.com"]
[Date "2023.11.28"]
[Round "6"]
[White "Bodhanas"]
[Black "CarlosAlbornoz"]
[Result "0-1"]
[WhiteElo "2209"]
[BlackElo "2756"]
[TimeControl "180+1"]
[EndTime "9:12:52 PST"]
[Termination "CarlosAlbornoz won by resignation"]

1. d4 {[%clk 0:03:00]} 1... Nf6 {[%clk 0:02:59.9]} 2. Nf3 {[%clk 0:02:59.9]}
2... g6 {[%clk 0:02:59.5]} 3. Bf4 {[%clk 0:02:59.4]} 3... d5 {[%clk 0:02:58.8]}
4. e3 {[%clk 0:02:58.3]} 4... Bg7 {[%clk 0:02:58.7]} 5. Bd3 {[%clk 0:02:57.9]}
5... O-O {[%clk 0:02:58.9]} 6. O-O {[%clk 0:02:56.3]} 6... c5 {[%clk 0:02:59.4]}
7. c3 {[%clk 0:02:55.4]} 7... Nc6 {[%clk 0:02:58.1]} 8. Nbd2 {[%clk 0:02:54.8]}
8... b6 {[%clk 0:02:57.1]} 9. Re1 {[%clk 0:02:50.5]} 9... Bb7 {[%clk 0:02:57.1]}
10. Ne5 {[%clk 0:02:41.1]} 10... Nxe5 {[%clk 0:02:56.6]} 11. Bxe5 {[%clk
0:02:40.6]} 11... Nd7 {[%clk 0:02:53.1]} 12. Bxg7 {[%clk 0:02:38.3]} 12... Kxg7
{[%clk 0:02:54]} 13. Qf3 {[%clk 0:02:33.6]} 13... e5 {[%clk 0:02:53.3]} 14. Qg3
{[%clk 0:02:32.4]} 14... Qf6 {[%clk 0:02:49.5]} 15. dxe5 {[%clk 0:02:17.6]}
15... Nxe5 {[%clk 0:02:49.6]} 16. Bc2 {[%clk 0:02:16.9]} 16... h5 {[%clk
0:02:47.6]} 17. f4 {[%clk 0:02:15.5]} 17... Ng4 {[%clk 0:02:44.1]} 18. h3 {[%clk
0:02:13.7]} 18... Nh6 {[%clk 0:02:44.3]} 19. e4 {[%clk 0:02:09.6]} 19... dxe4
{[%clk 0:02:40.9]} 20. Bxe4 {[%clk 0:02:08.2]} 20... Nf5 {[%clk 0:02:40.3]} 21.
Qf2 {[%clk 0:02:03.8]} 21... Bc6 {[%clk 0:02:36.5]} 22. Bxc6 {[%clk 0:01:57.3]}
22... Qxc6 {[%clk 0:02:37.4]} 23. Nf3 {[%clk 0:01:57.1]} 23... Rad8 {[%clk
0:02:34.5]} 24. Rad1 {[%clk 0:01:55.8]} 24... Qf6 {[%clk 0:02:30.1]} 25. Ne5
{[%clk 0:01:52.9]} 25... Rxd1 {[%clk 0:02:29.2]} 26. Rxd1 {[%clk 0:01:52.5]}
26... Rd8 {[%clk 0:02:29.6]} 27. Rxd8 {[%clk 0:01:47.2]} 27... Qxd8 {[%clk
0:02:29.5]} 28. Qe2 {[%clk 0:01:42.9]} 28... h4 {[%clk 0:02:28.7]} 29. Qc4
{[%clk 0:01:35.9]} 29... Qe7 {[%clk 0:02:19]} 30. b4 {[%clk 0:01:32.1]} 30... f6
{[%clk 0:02:16.4]} 31. Nf3 {[%clk 0:01:25.2]} 31... Qe3+ {[%clk 0:02:12.6]} 32.
Kh2 {[%clk 0:01:23]} 32... Nd6 {[%clk 0:01:55.3]} 33. Qd5 {[%clk 0:01:15.2]}
33... Qxf4+ {[%clk 0:01:55]} 34. Kg1 {[%clk 0:01:14.7]} 34... Ne4 {[%clk
0:01:50.3]} 35. bxc5 {[%clk 0:01:08.1]} 35... Nxc5 {[%clk 0:01:43.3]} 36. Nd4
{[%clk 0:01:01.2]} 36... Qe3+ {[%clk 0:01:35.1]} 37. Kh2 {[%clk 0:01:00.6]}
37... Qe5+ {[%clk 0:01:21.8]} 38. Qxe5 {[%clk 0:01:00]} 38... fxe5 {[%clk
0:01:22.7]} 39. Nc6 {[%clk 0:00:59.8]} 39... Kf6 {[%clk 0:01:23.2]} 40. Nxa7
{[%clk 0:00:59.1]} 40... Kf5 {[%clk 0:01:17.9]} 41. Kg1 {[%clk 0:00:57.1]} 41...
Kf4 {[%clk 0:01:16.6]} 42. Nb5 {[%clk 0:00:54.7]} 42... Ke3 {[%clk 0:01:14.8]}
43. Nd6 {[%clk 0:00:51.4]} 43... Kd3 {[%clk 0:01:13.7]} 44. c4 {[%clk
0:00:50.6]} 44... e4 {[%clk 0:01:13.9]} 45. Kf2 {[%clk 0:00:46.3]} 45... e3+
{[%clk 0:01:14]} 46. Ke1 {[%clk 0:00:46.1]} 46... Ne6 {[%clk 0:01:14.3]} 47. Nf7
{[%clk 0:00:42.7]} 47... Nf4 {[%clk 0:01:10]} 48. Ne5+ {[%clk 0:00:41.9]} 48...
Ke4 {[%clk 0:01:10.4]} 49. Nd7 {[%clk 0:00:41.3]} 49... Nxg2+ {[%clk 0:01:10.4]}
50. Kf1 {[%clk 0:00:40.8]} 50... Nf4 {[%clk 0:01:06.5]} 51. Nxb6 {[%clk
0:00:40.3]} 51... Kf3 {[%clk 0:01:06.7]} 52. Nd5 {[%clk 0:00:37.2]} 52... e2+
{[%clk 0:01:06.8]} 53. Ke1 {[%clk 0:00:37]} 53... Ng2+ {[%clk 0:01:05.3]} 54.
Kd2 {[%clk 0:00:37.1]} 54... e1=Q+ {[%clk 0:01:05.8]} 55. Kd3 {[%clk 0:00:36.9]}
55... Nf4+ {[%clk 0:01:05.9]} 56. Kd4 {[%clk 0:00:36.8]} 56... Nxd5 {[%clk
0:01:06]} 57. cxd5 {[%clk 0:00:36.4]} 57... Qd2+ {[%clk 0:01:06.3]} 58. Ke5
{[%clk 0:00:36.5]} 58... Qxa2 {[%clk 0:01:07.2]} 59. d6 {[%clk 0:00:36.6]} 59...
Qd2 {[%clk 0:01:07.2]} 60. Ke6 {[%clk 0:00:36.4]} 60... g5 {[%clk 0:01:07.6]}
0-1

[Event "Early-Titled-Tuesday-Blitz-November-28-2023"]
[Site "Chess.com"]
[Date "2023.11.28"]
[Round "6"]
[White "Zavgorodniy_Sergiy"]
[Black "snowlord"]
[Result "0-1"]
[WhiteElo "2695"]
[BlackElo "2877"]
[TimeControl "180+1"]
[EndTime "9:12:53 PST"]
[Termination "snowlord won by resignation"]

1. e4 {[%clk 0:03:00.9]} 1... c5 {[%clk 0:03:00.2]} 2. Nf3 {[%clk 0:03:00.1]}
2... d6 {[%clk 0:03:00.8]} 3. c3 {[%clk 0:02:59.4]} 3... Nf6 {[%clk 0:03:01]} 4.
Bc4 {[%clk 0:02:59.3]} 4... e6 {[%clk 0:03:00.5]} 5. Qe2 {[%clk 0:02:58.7]} 5...
Nc6 {[%clk 0:03:00.4]} 6. d4 {[%clk 0:02:58.1]} 6... cxd4 {[%clk 0:03:00.6]} 7.
cxd4 {[%clk 0:02:59]} 7... Nxe4 {[%clk 0:03:00.4]} 8. Qxe4 {[%clk 0:02:47.1]}
8... d5 {[%clk 0:02:59.8]} 9. Bxd5 {[%clk 0:02:46.7]} 9... Qxd5 {[%clk 0:03:00]}
10. Qxd5 {[%clk 0:02:46.8]} 10... exd5 {[%clk 0:03:00.9]} 11. Nc3 {[%clk
0:02:46.6]} 11... Bg4 {[%clk 0:02:52.4]} 12. O-O {[%clk 0:02:28.6]} 12... Bxf3
{[%clk 0:02:50.2]} 13. gxf3 {[%clk 0:02:28.8]} 13... O-O-O {[%clk 0:02:44.4]}
14. Be3 {[%clk 0:02:20.2]} 14... Bb4 {[%clk 0:02:43.3]} 15. Na4 {[%clk
0:02:18.8]} 15... Rd6 {[%clk 0:02:36.5]} 16. a3 {[%clk 0:02:16.2]} 16... Rg6+
{[%clk 0:02:36.3]} 17. Kh1 {[%clk 0:02:15.2]} 17... Bd6 {[%clk 0:02:36.2]} 18.
Rg1 {[%clk 0:02:11.3]} 18... Kd7 {[%clk 0:02:31]} 19. b4 {[%clk 0:02:07.3]}
19... b6 {[%clk 0:02:23.7]} 20. Nc3 {[%clk 0:02:04.2]} 20... Ne7 {[%clk
0:02:24]} 21. b5 {[%clk 0:01:25.3]} 21... Rc8 {[%clk 0:02:15.6]} 22. Rgc1 {[%clk
0:01:25.1]} 22... Rf6 {[%clk 0:01:45]} 23. Kg2 {[%clk 0:01:15.3]} 23... Rf5
{[%clk 0:01:45.4]} 24. Ne2 {[%clk 0:01:11.1]} 24... Ng6 {[%clk 0:01:38.7]} 25.
Rxc8 {[%clk 0:01:01.1]} 25... Kxc8 {[%clk 0:01:39.6]} 26. Rc1+ {[%clk
0:00:54.2]} 26... Kd7 {[%clk 0:01:39.2]} 27. Ng3 {[%clk 0:00:48.4]} 27... Nf4+
{[%clk 0:01:19.8]} 28. Bxf4 {[%clk 0:00:45]} 28... Rxf4 {[%clk 0:01:20.2]} 29.
Ne2 {[%clk 0:00:42.6]} 29... Rh4 {[%clk 0:01:16.5]} 30. h3 {[%clk 0:00:42.6]}
30... Rh6 {[%clk 0:01:04.7]} 31. f4 {[%clk 0:00:40.4]} 31... Re6 {[%clk
0:01:02.3]} 32. Kf3 {[%clk 0:00:40.7]} 32... Rh6 {[%clk 0:00:52.8]} 33. Kg2
{[%clk 0:00:39.9]} 33... Rf6 {[%clk 0:00:50.7]} 34. Kf3 {[%clk 0:00:40]} 34...
Bxf4 {[%clk 0:00:48.8]} 35. Nxf4 {[%clk 0:00:35.9]} 35... g5 {[%clk 0:00:49.2]}
36. Rc6 {[%clk 0:00:29]} 36... Rxf4+ {[%clk 0:00:48.1]} 37. Ke3 {[%clk
0:00:29.3]} 37... Re4+ {[%clk 0:00:47.4]} 38. Kd3 {[%clk 0:00:28.1]} 38... Rh4
{[%clk 0:00:35.1]} 39. Rf6 {[%clk 0:00:18.2]} 39... Rxh3+ {[%clk 0:00:35.5]} 40.
Ke2 {[%clk 0:00:16.2]} 40... Ke7 {[%clk 0:00:36]} 41. Rc6 {[%clk 0:00:15.7]}
41... Rxa3 {[%clk 0:00:36.1]} 0-1

[Event "Early-Titled-Tuesday-Blitz-November-28-2023"]
[Site "Chess.com"]
[Date "2023.11.28"]
[Round "6"]
[White "Laico"]
[Black "stasOR4ik"]
[Result "1-0"]
[WhiteElo "2346"]
[BlackElo "2497"]
[TimeControl "180+1"]
[EndTime "9:12:54 PST"]
[Termination "Laico won on time"]

1. e4 {[%clk 0:02:58.1]} 1... c6 {[%clk 0:02:59.2]} 2. d4 {[%clk 0:02:57.8]}
2... d5 {[%clk 0:03:00.1]} 3. f3 {[%clk 0:02:58.4]} 3... dxe4 {[%clk 0:02:59.2]}
4. fxe4 {[%clk 0:02:59.3]} 4... e5 {[%clk 0:02:57.5]} 5. Nf3 {[%clk 0:02:59.7]}
5... Bg4 {[%clk 0:02:55.2]} 6. Bc4 {[%clk 0:02:59.8]} 6... Nd7 {[%clk
0:02:51.2]} 7. c3 {[%clk 0:02:59.2]} 7... Bd6 {[%clk 0:02:46.4]} 8. Qb3 {[%clk
0:02:58.3]} 8... Qe7 {[%clk 0:02:45.5]} 9. Qxb7 {[%clk 0:02:57.5]} 9... Rb8
{[%clk 0:02:43.9]} 10. Qxc6 {[%clk 0:02:57.2]} 10... Bxf3 {[%clk 0:02:38.1]} 11.
gxf3 {[%clk 0:02:56.9]} 11... Nf6 {[%clk 0:02:35.2]} 12. O-O {[%clk 0:02:23.6]}
12... O-O {[%clk 0:02:32.1]} 13. Bb3 {[%clk 0:02:00.1]} 13... Rfc8 {[%clk
0:02:16.9]} 14. Qa6 {[%clk 0:01:59.7]} 14... Rc7 {[%clk 0:01:39.9]} 15. Bg5
{[%clk 0:01:59.3]} 15... Rb6 {[%clk 0:01:09.1]} 16. Qd3 {[%clk 0:01:53]} 16...
h6 {[%clk 0:01:01.2]} 17. Bh4 {[%clk 0:01:53]} 17... g5 {[%clk 0:00:59.2]} 18.
Bg3 {[%clk 0:01:53.1]} 18... Nh5 {[%clk 0:00:58.3]} 19. Nd2 {[%clk 0:01:53.2]}
19... Nxg3 {[%clk 0:00:55.5]} 20. hxg3 {[%clk 0:01:54.1]} 20... exd4 {[%clk
0:00:55.8]} 21. Nc4 {[%clk 0:01:48.9]} 21... Rbc6 {[%clk 0:00:39.4]} 22. f4
{[%clk 0:01:23.4]} 22... dxc3 {[%clk 0:00:36.7]} 23. e5 {[%clk 0:01:13.4]} 23...
Bc5+ {[%clk 0:00:34]} 24. Kg2 {[%clk 0:01:11.5]} 24... cxb2 {[%clk 0:00:32.8]}
25. Nxb2 {[%clk 0:01:12.4]} 25... Nf8 {[%clk 0:00:29.6]} 26. Bd5 {[%clk
0:01:01.9]} 26... Rg6 {[%clk 0:00:22.8]} 27. f5 {[%clk 0:00:52.9]} 27... Rb6
{[%clk 0:00:17.7]} 28. Nc4 {[%clk 0:00:52.7]} 28... Rb4 {[%clk 0:00:16.8]} 29.
a3 {[%clk 0:00:40.2]} 29... Rb8 {[%clk 0:00:14.7]} 30. Rad1 {[%clk 0:00:33.5]}
30... Rd7 {[%clk 0:00:12.3]} 31. Qe4 {[%clk 0:00:32.8]} 31... Rbd8 {[%clk
0:00:11.5]} 32. e6 {[%clk 0:00:29.3]} 32... fxe6 {[%clk 0:00:10.7]} 33. fxe6
{[%clk 0:00:30.2]} 33... Rb7 {[%clk 0:00:09.2]} 34. Rf7 {[%clk 0:00:30.3]} 34...
Qxf7 {[%clk 0:00:01]} 35. exf7+ {[%clk 0:00:31.2]} 1-0

[Event "Early-Titled-Tuesday-Blitz-November-28-2023"]
[Site "Chess.com"]
[Date "2023.11.28"]
[Round "6"]
[White "McCarthyStone"]
[Black "Valy02chess"]
[Result "1-0"]
[WhiteElo "2399"]
[BlackElo "2246"]
[TimeControl "180+1"]
[EndTime "9:12:58 PST"]
[Termination "McCarthyStone won by checkmate"]

1. Nf3 {[%clk 0:03:00.9]} 1... d5 {[%clk 0:02:57.2]} 2. b3 {[%clk 0:02:59.4]}
2... Nf6 {[%clk 0:02:54]} 3. Bb2 {[%clk 0:02:59.2]} 3... c5 {[%clk 0:02:53.8]}
4. g3 {[%clk 0:02:57]} 4... g6 {[%clk 0:02:53.3]} 5. Bg2 {[%clk 0:02:57.3]} 5...
Bg7 {[%clk 0:02:53.4]} 6. O-O {[%clk 0:02:58.2]} 6... O-O {[%clk 0:02:53.2]} 7.
e3 {[%clk 0:02:58.3]} 7... Nc6 {[%clk 0:02:53]} 8. Ne5 {[%clk 0:02:58.4]} 8...
Nxe5 {[%clk 0:02:38.1]} 9. Bxe5 {[%clk 0:02:59.3]} 9... a5 {[%clk 0:02:38.5]}
10. d3 {[%clk 0:02:49.9]} 10... a4 {[%clk 0:02:38.2]} 11. bxa4 {[%clk
0:02:49.7]} 11... Rxa4 {[%clk 0:02:35.9]} 12. c4 {[%clk 0:02:49.7]} 12... Qa5
{[%clk 0:02:17.7]} 13. Nc3 {[%clk 0:02:44.3]} 13... Ra3 {[%clk 0:02:07.1]} 14.
Bxf6 {[%clk 0:02:20]} 14... Bxf6 {[%clk 0:02:05.9]} 15. Nxd5 {[%clk 0:02:19.9]}
15... Bxa1 {[%clk 0:02:03.6]} 16. Qxa1 {[%clk 0:02:20.8]} 16... Re8 {[%clk
0:01:46.2]} 17. Qe5 {[%clk 0:02:15.7]} 17... Qd8 {[%clk 0:01:41]} 18. Nc7 {[%clk
0:01:39.7]} 18... Rf8 {[%clk 0:01:37.3]} 19. Be4 {[%clk 0:01:22.3]} 19... Rxa2
{[%clk 0:01:08.9]} 20. Nd5 {[%clk 0:01:22.3]} 20... Be6 {[%clk 0:00:49.2]} 21.
Nf4 {[%clk 0:01:12.1]} 21... Qd6 {[%clk 0:00:46.7]} 22. Qc3 {[%clk 0:01:06.1]}
22... Bc8 {[%clk 0:00:40]} 23. h4 {[%clk 0:01:05]} 23... Ra6 {[%clk 0:00:23.2]}
24. h5 {[%clk 0:01:04.7]} 24... Qf6 {[%clk 0:00:19.9]} 25. Qb3 {[%clk 0:01:00]}
25... Rb6 {[%clk 0:00:17.7]} 26. Qa3 {[%clk 0:00:54.5]} 26... g5 {[%clk
0:00:17.2]} 27. Nd5 {[%clk 0:00:54.1]} 27... Qb2 {[%clk 0:00:14.6]} 28. Qxc5
{[%clk 0:00:52.2]} 28... Bh3 {[%clk 0:00:09.4]} 29. Nxe7+ {[%clk 0:00:44.9]}
29... Kh8 {[%clk 0:00:06]} 30. Nf5 {[%clk 0:00:16.7]} 30... Bxf1 {[%clk
0:00:03.1]} 31. Qxf8# {[%clk 0:00:16.1]} 1-0

[Event "Early-Titled-Tuesday-Blitz-November-28-2023"]
[Site "Chess.com"]
[Date "2023.11.28"]
[Round "6"]
[White "falzehope0"]
[Black "Journey_to_GrandMaster_YT"]
[Result "1-0"]
[WhiteElo "2369"]
[BlackElo "2528"]
[TimeControl "180+1"]
[EndTime "9:13:02 PST"]
[Termination "falzehope0 won on time"]

1. d4 {[%clk 0:03:00.9]} 1... d6 {[%clk 0:03:00.9]} 2. e3 {[%clk 0:02:53]} 2...
Nf6 {[%clk 0:03:01.8]} 3. Bd3 {[%clk 0:02:52.6]} 3... Nbd7 {[%clk 0:03:02.7]} 4.
f4 {[%clk 0:02:52.4]} 4... e5 {[%clk 0:03:03.1]} 5. Ne2 {[%clk 0:02:52.2]} 5...
e4 {[%clk 0:03:03.1]} 6. Bc4 {[%clk 0:02:52.1]} 6... d5 {[%clk 0:03:03.4]} 7.
Bb3 {[%clk 0:02:52.1]} 7... c6 {[%clk 0:03:02.9]} 8. c4 {[%clk 0:02:50.9]} 8...
Nb6 {[%clk 0:02:56.6]} 9. cxd5 {[%clk 0:02:49.7]} 9... cxd5 {[%clk 0:02:56.4]}
10. Nbc3 {[%clk 0:02:50]} 10... Be6 {[%clk 0:02:55.4]} 11. O-O {[%clk
0:02:49.3]} 11... Qd7 {[%clk 0:02:54.5]} 12. Ng3 {[%clk 0:02:46.2]} 12... g6
{[%clk 0:02:47.9]} 13. Bd2 {[%clk 0:02:43.2]} 13... Bd6 {[%clk 0:02:43.9]} 14.
Na4 {[%clk 0:02:42.5]} 14... O-O {[%clk 0:02:32.6]} 15. Nc5 {[%clk 0:02:37.5]}
15... Bxc5 {[%clk 0:02:32.7]} 16. dxc5 {[%clk 0:02:37.8]} 16... Nc4 {[%clk
0:02:32.6]} 17. Qc1 {[%clk 0:02:24]} 17... Rac8 {[%clk 0:02:26]} 18. Bc3 {[%clk
0:02:16.8]} 18... Ng4 {[%clk 0:02:21]} 19. Bd4 {[%clk 0:02:13.6]} 19... f5
{[%clk 0:02:18.1]} 20. Bd1 {[%clk 0:02:02.1]} 20... Nf6 {[%clk 0:02:11.6]} 21.
b3 {[%clk 0:01:58.6]} 21... Nd6 {[%clk 0:02:02.6]} 22. Qb2 {[%clk 0:01:54.7]}
22... Nde8 {[%clk 0:02:01.7]} 23. Be2 {[%clk 0:01:52.8]} 23... a6 {[%clk
0:02:00.6]} 24. b4 {[%clk 0:01:50.5]} 24... Qf7 {[%clk 0:01:53.3]} 25. a4 {[%clk
0:01:49.4]} 25... h5 {[%clk 0:01:50.4]} 26. Nh1 {[%clk 0:01:46.3]} 26... Nd7
{[%clk 0:01:48.4]} 27. Nf2 {[%clk 0:01:45.1]} 27... Nc7 {[%clk 0:01:31.6]} 28.
Nh3 {[%clk 0:01:44]} 28... Qe7 {[%clk 0:01:28]} 29. Ng5 {[%clk 0:01:41.2]} 29...
Bf7 {[%clk 0:01:23.4]} 30. Bh8 {[%clk 0:01:39.6]} 30... Be8 {[%clk 0:01:21.4]}
31. Rfd1 {[%clk 0:01:34.6]} 31... a5 {[%clk 0:01:21.1]} 32. Bd4 {[%clk
0:01:07.5]} 32... Na6 {[%clk 0:01:14.7]} 33. Bxa6 {[%clk 0:01:04]} 33... bxa6
{[%clk 0:01:14.4]} 34. Rac1 {[%clk 0:01:02.2]} 34... axb4 {[%clk 0:01:13.6]} 35.
Qxb4 {[%clk 0:01:02]} 35... Nb8 {[%clk 0:01:07.4]} 36. Ba1 {[%clk 0:00:59.6]}
36... Nc6 {[%clk 0:01:01]} 37. Qc3 {[%clk 0:00:58.9]} 37... d4 {[%clk 0:01:01]}
38. exd4 {[%clk 0:00:57.3]} 38... Qf6 {[%clk 0:00:48]} 39. Qc4+ {[%clk
0:00:53.3]} 39... Bf7 {[%clk 0:00:44.9]} 40. d5 {[%clk 0:00:48.8]} 40... Na5
{[%clk 0:00:31.4]} 41. Qb4 {[%clk 0:00:36.8]} 41... Qd8 {[%clk 0:00:05.6]} 42.
Qc3 {[%clk 0:00:35.6]} 1-0

[Event "Early-Titled-Tuesday-Blitz-November-28-2023"]
[Site "Chess.com"]
[Date "2023.11.28"]
[Round "6"]
[White "Alen_Yeremyann"]
[Black "Iskusnyh"]
[Result "1/2-1/2"]
[WhiteElo "2776"]
[BlackElo "2562"]
[TimeControl "180+1"]
[EndTime "9:13:03 PST"]
[Termination "Game drawn by repetition"]

1. e4 {[%clk 0:02:54.9]} 1... e6 {[%clk 0:02:59.4]} 2. Nc3 {[%clk 0:02:55.1]}
2... d5 {[%clk 0:02:58.4]} 3. Qe2 {[%clk 0:02:55.8]} 3... Nf6 {[%clk 0:02:53.5]}
4. exd5 {[%clk 0:02:55.4]} 4... Nxd5 {[%clk 0:02:49.9]} 5. g3 {[%clk 0:02:55.8]}
5... Nc6 {[%clk 0:02:39.5]} 6. Nf3 {[%clk 0:02:55.4]} 6... Be7 {[%clk
0:02:17.5]} 7. Bg2 {[%clk 0:02:55.3]} 7... O-O {[%clk 0:02:17.4]} 8. d3 {[%clk
0:02:55.1]} 8... Bf6 {[%clk 0:02:16.1]} 9. Ne4 {[%clk 0:02:48.8]} 9... Be7
{[%clk 0:02:10.2]} 10. O-O {[%clk 0:02:49.2]} 10... Nf6 {[%clk 0:02:08]} 11.
Nxf6+ {[%clk 0:02:48.9]} 11... Bxf6 {[%clk 0:02:07.6]} 12. c3 {[%clk 0:02:49.7]}
12... e5 {[%clk 0:02:03.3]} 13. b4 {[%clk 0:02:49.4]} 13... Nxb4 {[%clk
0:01:33.5]} 14. Nxe5 {[%clk 0:02:37.7]} 14... Bxe5 {[%clk 0:01:31.1]} 15. Qxe5
{[%clk 0:02:35.2]} 15... Nxd3 {[%clk 0:01:31.1]} 16. Qh5 {[%clk 0:02:33.5]}
16... Nxc1 {[%clk 0:01:27]} 17. Raxc1 {[%clk 0:02:34.4]} 17... Qf6 {[%clk
0:01:26.2]} 18. Rfe1 {[%clk 0:02:28.5]} 18... c6 {[%clk 0:01:24.4]} 19. Qc5
{[%clk 0:02:18.3]} 19... Be6 {[%clk 0:01:22.6]} 20. a4 {[%clk 0:02:18.3]} 20...
Rfd8 {[%clk 0:01:20.6]} 21. a5 {[%clk 0:02:18.1]} 21... Bd5 {[%clk 0:01:17.6]}
22. c4 {[%clk 0:02:06]} 22... Bxg2 {[%clk 0:01:16.6]} 23. Kxg2 {[%clk
0:02:06.7]} 23... g6 {[%clk 0:01:15]} 24. Rb1 {[%clk 0:01:59.6]} 24... Rd7
{[%clk 0:01:14.1]} 25. Re3 {[%clk 0:01:57.3]} 25... a6 {[%clk 0:00:52.3]} 26.
Rbe1 {[%clk 0:01:53.2]} 26... Rf8 {[%clk 0:00:48.1]} 27. Rb3 {[%clk 0:01:42.9]}
27... Rfd8 {[%clk 0:00:44.2]} 28. Re4 {[%clk 0:01:41.2]} 28... h5 {[%clk
0:00:40.5]} 29. h4 {[%clk 0:01:32.2]} 29... Rd3 {[%clk 0:00:39.6]} 30. Rf4
{[%clk 0:01:16.9]} 30... Qxf4 {[%clk 0:00:37.6]} 31. gxf4 {[%clk 0:01:13.2]}
31... Rxb3 {[%clk 0:00:36.9]} 32. Qe7 {[%clk 0:01:14]} 32... Rd2 {[%clk
0:00:25.6]} 33. f5 {[%clk 0:01:05.4]} 33... Rbb2 {[%clk 0:00:25.6]} 34. Qe8+
{[%clk 0:00:58.7]} 34... Kg7 {[%clk 0:00:25.5]} 35. Qe5+ {[%clk 0:00:58.7]}
35... Kg8 {[%clk 0:00:25]} 36. Qe8+ {[%clk 0:00:56.7]} 36... Kg7 {[%clk
0:00:25.2]} 37. Qe5+ {[%clk 0:00:23.4]} 37... Kh7 {[%clk 0:00:25]} 38. fxg6+
{[%clk 0:00:18.9]} 38... fxg6 {[%clk 0:00:25.9]} 39. Qe7+ {[%clk 0:00:19.1]}
39... Kg8 {[%clk 0:00:24.6]} 40. Qe8+ {[%clk 0:00:19.4]} 40... Kg7 {[%clk
0:00:25]} 41. Qe7+ {[%clk 0:00:20.3]} 41... Kg8 {[%clk 0:00:25.2]} 42. Qe8+
{[%clk 0:00:20.7]} 42... Kg7 {[%clk 0:00:25.5]} 43. Qe7+ {[%clk 0:00:21.6]}
43... Kg8 {[%clk 0:00:25.6]} 1/2-1/2

[Event "Early-Titled-Tuesday-Blitz-November-28-2023"]
[Site "Chess.com"]
[Date "2023.11.28"]
[Round "6"]
[White "Sofia_Blokhin"]
[Black "secretsuperstar7"]
[Result "1-0"]
[WhiteElo "2270"]
[BlackElo "2444"]
[TimeControl "180+1"]
[EndTime "9:13:03 PST"]
[Termination "Sofia_Blokhin won by checkmate"]

1. d4 {[%clk 0:03:00.9]} 1... Nf6 {[%clk 0:02:53.3]} 2. c4 {[%clk 0:03:00.1]}
2... e6 {[%clk 0:02:53.4]} 3. Nc3 {[%clk 0:02:59]} 3... Bb4 {[%clk 0:02:53]} 4.
e3 {[%clk 0:02:59.2]} 4... d5 {[%clk 0:02:50.7]} 5. Nf3 {[%clk 0:02:55.1]} 5...
O-O {[%clk 0:02:50.6]} 6. cxd5 {[%clk 0:02:46.8]} 6... exd5 {[%clk 0:02:49.9]}
7. Bd3 {[%clk 0:02:44.5]} 7... c6 {[%clk 0:02:49.8]} 8. Ne5 {[%clk 0:02:42.5]}
8... Nbd7 {[%clk 0:02:24.8]} 9. f4 {[%clk 0:02:34.7]} 9... Ne4 {[%clk
0:02:14.5]} 10. O-O {[%clk 0:02:07.4]} 10... f5 {[%clk 0:01:57.9]} 11. Nxe4
{[%clk 0:01:53.6]} 11... fxe4 {[%clk 0:01:54.5]} 12. Bxe4 {[%clk 0:01:48.2]}
12... Nxe5 {[%clk 0:01:51.8]} 13. dxe5 {[%clk 0:01:40.2]} 13... Bc5 {[%clk
0:01:29.9]} 14. Bxh7+ {[%clk 0:01:29.1]} 14... Kxh7 {[%clk 0:01:29.2]} 15. Qc2+
{[%clk 0:01:28.8]} 15... Bf5 {[%clk 0:01:23.6]} 16. Qxc5 {[%clk 0:01:27.9]}
16... Be4 {[%clk 0:01:16.2]} 17. b3 {[%clk 0:01:18.9]} 17... Qh4 {[%clk
0:01:12.8]} 18. Bb2 {[%clk 0:00:57.1]} 18... Rf5 {[%clk 0:01:10.6]} 19. g3
{[%clk 0:00:28.8]} 19... Qh3 {[%clk 0:01:07.3]} 20. Rf2 {[%clk 0:00:28.8]} 20...
Rh5 {[%clk 0:01:04.6]} 21. Rd2 {[%clk 0:00:16.3]} 21... Rh8 {[%clk 0:00:49.9]}
22. Qe7 {[%clk 0:00:13.6]} 22... Kg6 {[%clk 0:00:30.3]} 23. e6 {[%clk
0:00:13.7]} 23... Qxg3+ {[%clk 0:00:23.3]} 24. Kf1 {[%clk 0:00:10.2]} 24... Qf3+
{[%clk 0:00:20.6]} 25. Rf2 {[%clk 0:00:09.3]} 25... Bd3+ {[%clk 0:00:17.3]} 26.
Ke1 {[%clk 0:00:07.9]} 26... Qxe3+ {[%clk 0:00:15.6]} 27. Kd1 {[%clk 0:00:08.2]}
27... Qxf2 {[%clk 0:00:08.7]} 28. Qf7+ {[%clk 0:00:03.6]} 28... Kh6 {[%clk
0:00:07.9]} 29. Qxg7# {[%clk 0:00:03.7]} 1-0

[Event "Early-Titled-Tuesday-Blitz-November-28-2023"]
[Site "Chess.com"]
[Date "2023.11.28"]
[Round "6"]
[White "GP9isback23"]
[Black "K_A_S_T_O_R"]
[Result "0-1"]
[WhiteElo "2624"]
[BlackElo "2857"]
[TimeControl "180+1"]
[EndTime "9:13:08 PST"]
[Termination "K_A_S_T_O_R won on time"]

1. d4 {[%clk 0:02:59.9]} 1... Nf6 {[%clk 0:02:58.9]} 2. Nf3 {[%clk 0:03:00.4]}
2... e6 {[%clk 0:02:58.9]} 3. c4 {[%clk 0:02:58.7]} 3... c5 {[%clk 0:02:58.5]}
4. e3 {[%clk 0:02:54.6]} 4... a6 {[%clk 0:02:54.6]} 5. Be2 {[%clk 0:02:52.6]}
5... d5 {[%clk 0:02:53.9]} 6. cxd5 {[%clk 0:02:33.8]} 6... exd5 {[%clk
0:02:51.4]} 7. O-O {[%clk 0:02:34]} 7... c4 {[%clk 0:02:50.7]} 8. b3 {[%clk
0:02:19.7]} 8... b5 {[%clk 0:02:49.7]} 9. a4 {[%clk 0:02:19.9]} 9... Bb7 {[%clk
0:02:47.8]} 10. axb5 {[%clk 0:02:15.7]} 10... axb5 {[%clk 0:02:47.7]} 11. Rxa8
{[%clk 0:02:16.5]} 11... Bxa8 {[%clk 0:02:48.5]} 12. Ne5 {[%clk 0:02:14.2]}
12... Nbd7 {[%clk 0:02:45.3]} 13. bxc4 {[%clk 0:01:48.9]} 13... dxc4 {[%clk
0:02:38.7]} 14. Nc3 {[%clk 0:01:48]} 14... Qb8 {[%clk 0:02:26.7]} 15. Nxd7
{[%clk 0:01:40.7]} 15... Nxd7 {[%clk 0:02:25.7]} 16. Bg4 {[%clk 0:01:40.9]}
16... Nf6 {[%clk 0:02:12.6]} 17. Bf3 {[%clk 0:01:41]} 17... Bb4 {[%clk
0:02:02.4]} 18. Bxa8 {[%clk 0:01:37.5]} 18... Bxc3 {[%clk 0:02:01.7]} 19. Bc6+
{[%clk 0:01:36.9]} 19... Kf8 {[%clk 0:01:53.1]} 20. e4 {[%clk 0:01:13.8]} 20...
Qb6 {[%clk 0:01:43.9]} 21. d5 {[%clk 0:01:08.3]} 21... Nxe4 {[%clk 0:01:32.6]}
22. Be3 {[%clk 0:00:58.2]} 22... Qa5 {[%clk 0:01:26.4]} 23. Qb1 {[%clk
0:00:53.1]} 23... Nd2 {[%clk 0:01:17.3]} 24. Bxd2 {[%clk 0:00:14.9]} 24... Bxd2
{[%clk 0:01:16.8]} 25. Bxb5 {[%clk 0:00:12.4]} 25... c3 {[%clk 0:01:14.7]} 26.
d6 {[%clk 0:00:12.6]} 26... g6 {[%clk 0:01:11]} 27. Qd3 {[%clk 0:00:11.9]} 27...
Qb6 {[%clk 0:01:06.7]} 28. Ra1 {[%clk 0:00:06.3]} 28... Kg7 {[%clk 0:01:05]} 29.
d7 {[%clk 0:00:06.2]} 29... Rd8 {[%clk 0:01:01.3]} 30. g3 {[%clk 0:00:05.9]}
30... Qc5 {[%clk 0:00:57.5]} 31. Kg2 {[%clk 0:00:03.2]} 31... Bg5 {[%clk
0:00:55.9]} 32. h4 {[%clk 0:00:03.4]} 32... Bf6 {[%clk 0:00:47.8]} 33. Rc1
{[%clk 0:00:02.7]} 33... Rb8 {[%clk 0:00:45.2]} 34. Bc4 {[%clk 0:00:02.6]} 34...
Qc6+ {[%clk 0:00:42.3]} 35. Qd5 {[%clk 0:00:02.3]} 35... Qxd5+ {[%clk 0:00:39]}
36. Bxd5 {[%clk 0:00:03.2]} 36... Kf8 {[%clk 0:00:39.5]} 37. Bc6 {[%clk
0:00:01.9]} 37... Ke7 {[%clk 0:00:39.1]} 38. Rc2 {[%clk 0:00:02.1]} 38... Kd6
{[%clk 0:00:39.1]} 39. Ba4 {[%clk 0:00:02.1]} 39... Kc5 {[%clk 0:00:34.7]} 0-1